Cogmind - Beta 13 @@@ ROGUE MODE // 2024.06.23 @ 20:12:08 Player: CONNOR_M Result: Destroyed by Y-45 Defender with Beam Rifle Performance ------------- Evolutions (2) 1000 Regions Visited (6) 1200 Robots Destroyed (29) 145 Value Destroyed (516) 516 Prototype IDs (24) 480 Alien Tech Used (0) 0 Bonus (321) 321 TOTAL SCORE: 3662 Bonus ------- Follower Combat Kills 21 Aligned with FarCom 300 Cogmind --------- Core Integrity 0/550 Matter 300/300 Energy 610/610 System Corruption 0% Temperature Cool (9) Movement Treading (170) Location -8/Storage Parts ------- > --- POWER (1) -------- Light Nuclear Core > --- PROPULSION (4) --- Armored Treads Armored Treads Armored Treads > --- UTILITY (4) ------ High-capacity Battery Compact Battery > --- WEAPON (2) ------- (None) > --- INVENTORY (5) ---- Ion Engine Wheel System Shield Peak State ------------ > --- POWER ------------ Light Nuclear Core > --- PROPULSION ------- Light Treads Armored Treads > --- UTILITY ---------- Small Storage Unit Advanced Visual Processing Unit Bomb Drone Bay > --- WEAPON ----------- Ion Cannon > --- INVENTORY -------- Ion Engine Light Nuclear Core Wheel High-capacity Battery Cloak of Protection Katana [Rating: 29] Favorites ----------- Power Light Nuclear Core Engine Ion Engine Power Core Light Nuclear Core Propulsion Aluminum Leg Treads Armored Treads Leg Aluminum Leg Utility Small Storage Unit Device Seismic Detector Storage Small Storage Unit Processor Advanced Visual Processing Unit Protection Hardened Medium Armor Plating Weapon Assault Cannon Energy Cannon Ion Cannon Ballistic Gun High-powered Shotgun Ballistic Cannon Assault Cannon Launcher Rocket Launcher Slashing Weapon Katana Build | -11 -10 -10 -10 -9 -8 -8 ------- Run | Yrd Mat Min Exi Min Mat Sto Slots Evolved 4 | . . . . . 4 . Power . | . . . . . . . Propulsion 2 | . . . . . 2 . Utility 2 | . . . . . 2 . Weapon . | . . . . . . . Parts Attached 35 | 7 . 4 . 1 16 7 Power 5 | 1 . 1 . . 2 1 Engine 1 | 1 . . . . . . Core 4 | . . 1 . . 2 1 Reactor . | . . . . . . . Propulsion 8 | 2 . 1 . . 2 3 Treads 5 | . . . . . 2 3 Leg 3 | 2 . 1 . . . . Wheel . | . . . . . . . Hover . | . . . . . . . Flight . | . . . . . . . Utility 10 | 2 . . . . 5 3 Device 4 | 1 . . . . 3 . Storage 3 | 1 . . . . . 2 Processor 1 | . . . . . 1 . Hackware . | . . . . . . . Protection 2 | . . . . . 1 1 Artifact . | . . . . . . . Weapon 12 | 2 . 2 . 1 7 . Energy Gun . | . . . . . . . Energy Cannon 1 | . . . . . 1 . Ballistic Gun 4 | 2 . 1 . . 1 . Ballistic Cannon 1 | . . 1 . . . . Launcher 3 | . . . . 1 2 . Special Weapon . | . . . . . . . Impact Weapon . | . . . . . . . Slashing Weapon 3 | . . . . . 3 . Piercing Weapon . | . . . . . . . Special Melee Weapon . | . . . . . . . Unidentified Prototypes . | . . . . . . . Parts Lost 10 | . . . . . 9 1 Power 1 | . . . . . 1 . Propulsion 4 | . . . . . 4 . Utility 3 | . . . . . 2 1 Weapon 2 | . . . . . 2 . Highest Loss Streak 7 | . . . . . 7 1 To Critical Strikes . | . . . . . . . Average Slot Usage (%) 79 | . 100 100 100 100 61 42 Engine 2 | . 14 7 . . . . Core 7 | . . 6 14 14 6 2 Treads 5 | . . . . . 8 25 Leg 17 | . 28 28 28 28 8 . Device 9 | . 14 14 14 14 6 . Storage 11 | . 14 14 14 14 8 10 Processor 3 | . . . . . 7 . Ballistic Gun 9 | . 28 17 14 13 1 . Ballistic Cannon 6 | . . 10 14 14 3 . Slashing Weapon 2 | . . . . . 6 . Naked Turns 28 | . . . . . 20 8 Heaviest Build 30 | 15 15 19 19 20 30 13 Greatest Support 60 | 20 20 20 20 20 40 60 Greatest Overweight (x) 7 | 1 . . . . 7 . Average Overweight (x) . | . . . . . . . Largest Inventory Capacity 8 | 8 8 8 8 8 8 5 Average Capacity 7 | 7 8 8 8 8 7 5 Most Carried 8 | 3 8 8 8 8 8 5 Average Carried 7 | 1 6 7 7 7 7 4 Final Capacity 8 | 8 8 8 8 8 5 5 Final Carried 8 | 3 8 8 8 8 5 3 Class Distribution -------------------- 100% | Mutant Dominant Class ---------------- Mutant | -10/Materials Mutant | -10/Mines Mutant | -10/Exiles Mutant | -9/Mines Mutant | -8/Materials Mutant | -8/Storage Resources | -11 -10 -10 -10 -9 -8 -8 ----------- Run | Yrd Mat Min Exi Min Mat Sto Matter Collected 961 | 206 . 228 . 130 93 304 Remotely . | . . . . . . . Salvage Created 561 | 27 42 168 . 143 86 95 Parts 48 | 6 2 13 . 14 11 2 Haulers Intercepted 1 | . . . . . 1 . Recyclers Shooed 1 | . . . . . 1 . Parts Field Recycled . | . . . . . . . Retrieved Matter . | . . . . . . . Parts Self-Destructed . | . . . . . . . Prevented . | . . . . . . . Kills | -11 -10 -10 -10 -9 -8 -8 ------- Run | Yrd Mat Min Exi Min Mat Sto Combat Hostiles Destroyed 17 | . 1 8 . 4 1 3 Melee 3 | . . . . . . 3 Guns 7 | . 1 3 . 3 . . Cannons 6 | . . 5 . 1 . . AOE 1 | . . . . . 1 . Classes Destroyed 9 | 1 1 2 . 2 2 1 Worker 5 | . . 2 . 1 2 . Builder 2 | . . . . 1 1 . Tunneler 2 | 2 . . . . . . Hauler 1 | . . . . . 1 . Recycler 1 | . . . . 1 . . Operator 1 | . . . . . 1 . Swarmer 8 | . . 4 . 3 1 . Grunt 8 | . 1 4 . 1 . 2 Brawler 1 | . . . . . . 1 Best Kill Streak 4 | 1 1 3 . 4 2 3 Combat Bots Only 3 | . 1 3 . 2 1 3 Max Kills in Single Turn 2 | 1 1 1 . 1 2 1 Gunslinging . | . . . . . . . Exploded 1 | . . . . . 1 . Melee 1 | . . . . . . 1 Uniques/NPCs Destroyed . | . . . . . . . Combat | -11 -10 -10 -10 -9 -8 -8 -------- Run | Yrd Mat Min Exi Min Mat Sto Hostile Shots Fired 283 | . 6 42 . 28 146 61 Missed 88 | . 1 13 . 12 40 22 Damage Taken 3030 | . 53 388 . 122 1854 613 Core 654 | . 12 63 . 25 466 88 Absorbed by Shields . | . . . . . . . Core Remaining (%) 80 | 100 . . . 60 . . Volleys Fired 58 | 3 8 21 . 12 14 . Largest 2 | 2 2 2 . 2 2 . Hottest 96 | 40 40 69 . 69 96 . Shots Fired 108 | 6 16 43 . 25 18 . Gun 56 | 6 16 22 . 12 . . Cannon 48 | . . 21 . 13 14 . Launcher 4 | . . . . . 4 . Special . | . . . . . . . Kinetic 100 | 6 16 43 . 25 10 . Thermal 4 | . . . . . 4 . Explosive 4 | . . . . . 4 . Electromagnetic . | . . . . . . . Robot Hit Streak 10 | 2 3 10 . 8 4 . Robot Miss Streak 7 | 3 2 3 . 7 4 . Penetration Max . | . . . . . . . Secondary Targets . | . . . . . . . Shots Hit Robots 70 | 2 10 29 . 13 16 . Core Hits 38 | 2 4 14 . 8 9 1 Critical Kills . | . . . . . . . Critical Parts Destroyed . | . . . . . . . Critical Strikes 4 | . . . . 1 3 . Blast 1 | . . . . 1 . . Sever 3 | . . . . . 3 . Melee Attacks 18 | . . . . . 18 . Impact . | . . . . . . . Slashing 18 | . . . . . 18 . Piercing . | . . . . . . . Sneak Attacks 5 | . . . . . 5 . Combat Hostiles . | . . . . . . . Follow-up Attacks . | . . . . . . . Damage Inflicted 1930 | 28 127 583 . 293 895 4 Guns 607 | 28 127 254 . 198 . . Cannons 620 | . . 329 . 95 196 . Explosions 280 | . . . . . 280 . Melee 413 | . . . . . 413 . Ramming 10 | . . . . . 6 4 Kinetic 1205 | 28 127 583 . 293 174 . Thermal 22 | . . . . . 22 . Explosive 280 | . . . . . 280 . Electromagnetic . | . . . . . . . Impact . | . . . . . . . Slashing 413 | . . . . . 413 . Piercing . | . . . . . . . Highest Corruption 1 | . 1 1 1 1 . . Average Corruption 1 | . 1 1 1 1 . . Corruption Purged . | . . . . . . . Corruption Blocked . | . . . . . . . Effects 11 | . . 5 2 4 . . Message Errors 3 | . . 1 1 1 . . Matter Fused 2 | . . 1 . 1 . . Heat Flow Errors 1 | . . 1 . . . . Energy Discharges 2 | . . 1 1 . . . Data Loss (minor) 1 | . . . . 1 . . Misfires 2 | . . 1 . 1 . . Overload Shots . | . . . . . . . Overflow Damage 117 | . . . . 4 113 . Projectiles 4 | . . . . 4 . . Explosions 23 | . . . . . 23 . Melee 90 | . . . . . 90 . Knockbacks 5 | . . 3 . 2 . . Impact . | . . . . . . . Kinetic 5 | . . 3 . 2 . . Secondary . | . . . . . . . Self-Inflicted Damage 15 | . . . . . 15 . Shots 1 | . . . . . 1 . Rammed 6 | . . . . . 1 5 Targets Rammed 9 | . . . . . 1 8 Kicked . | . . . . . . . Crushed 3 | . . . . . . 3 Highest Temperature 217 | . . 217 . 60 77 . Average Temperature 40 | . . 58 . 25 18 . Received Heat Transfer 972 | . 30 132 . . 639 171 Siege Activations . | . . . . . . . Robots Corrupted . | . . . . . . . Combat Hostiles . | . . . . . . . Parts Fried . | . . . . . . . Impact Corruptions . | . . . . . . . Robots Melted . | . . . . . . . Combat Hostiles . | . . . . . . . Parts Melted . | . . . . . . . Heat Transferred 37 | . . . . . 37 . Parts Sabotaged . | . . . . . . . Parts Stolen . | . . . . . . . Parts Stripped . | . . . . . . . Power Chain Reactions . | . . . . . . . Alert | -11 -10 -10 -10 -9 -8 -8 ------- Run | Yrd Mat Min Exi Min Mat Sto Peak Influence 262 | 10 81 138 . 262 142 75 Initial 102 | . 6 31 . . 102 . Average 57 | 3 40 57 . 146 46 37 Maximum Alert Level 1 | . . . . 1 . . Low Security (%) 95 | 100 100 100 . 59 100 100 Level 1 4 | . . . . 40 . . Level 2 . | . . . . . . . Level 3 . | . . . . . . . Level 4 . | . . . . . . . Level 5 . | . . . . . . . High Security . | . . . . . . . Max Security . | . . . . . . . Squads Dispatched 8 | . 1 . . . 5 2 Investigation 1 | . 1 . . . . . Extermination . | . . . . . . . Reinforcement 5 | . . . . . 5 . Assault 2 | . . . . . . 2 Garrison . | . . . . . . . Intercept . | . . . . . . . Searches Triggered . | . . . . . . . Construction Impeded . | . . . . . . . Haulers Reinforced . | . . . . . . . Active Scanning Responses . | . . . . . . . Cargo Convoy Interrupts . | . . . . . . . Stealth | -11 -10 -10 -10 -9 -8 -8 --------- Run | Yrd Mat Min Exi Min Mat Sto Distress Signals 2 | . . . . . 2 . Communications Jammed . | . . . . . . . Distress Signals . | . . . . . . . Times Spotted 70 | . 5 9 . 8 35 13 Peak Tracking Total 10 | . 2 3 . 3 10 7 Tactical Retreats 3 | . . 1 . . 2 . Traps | -11 -10 -10 -10 -9 -8 -8 ------- Run | Yrd Mat Min Exi Min Mat Sto Traps Triggered 3 | . 1 2 . . . . Indirectly . | . . . . . . . Trap Hack Attempts . | . . . . . . . Triggered . | . . . . . . . Disarmed . | . . . . . . . Reprogrammed . | . . . . . . . Reused . | . . . . . . . Traps Extracted . | . . . . . . . Installed . | . . . . . . . Triggered . | . . . . . . . Machines | -11 -10 -10 -10 -9 -8 -8 ---------- Run | Yrd Mat Min Exi Min Mat Sto Machines Disabled 2 | . . . . . 1 1 Max in Single Turn 1 | . . . . . 1 . Machines Repaired . | . . . . . . . Machines Dismantled . | . . . . . . . Machines Sabotaged . | . . . . . . . Overloaded Fab Kills . | . . . . . . . Hacking | -11 -10 -10 -10 -9 -8 -8 --------- Run | Yrd Mat Min Exi Min Mat Sto Machines Accessed 11 | . 2 2 2 . 4 1 Terminals 6 | . 2 . . . 3 1 Fabricators . | . . . . . . . Repair Stations . | . . . . . . . Recycling Units . | . . . . . . . Scanalyzers 1 | . . . . . 1 . Garrison Access . | . . . . . . . Total Hacks 21 | . 3 2 2 . 10 4 Successful 11 | . . 2 2 . 6 1 Failed 10 | . 3 . . . 4 3 Catastrophic 1 | . 1 . . . . . Database Lockouts . | . . . . . . . Manual 9 | . 3 . 1 . 5 . Terminals 14 | . 3 . . . 7 4 Fabricators . | . . . . . . . Repair Stations . | . . . . . . . Recycling Units . | . . . . . . . Scanalyzers 3 | . . . . . 3 . Garrison Access . | . . . . . . . Terminal Hacks 7 | . . 2 2 . 2 1 Record 1 | . . . 1 . . . Open Door 2 | . . 2 . . . . Terminal Index 1 | . . . . . 1 . Alert Level 1 | . . . . . . 1 Zone Layout 1 | . . . . . 1 . Derelict Proto ID Bank 1 | . . . 1 . . . Fabricator Hacks . | . . . . . . . Repair Station Hacks . | . . . . . . . Recycling Unit Hacks . | . . . . . . . Scanalyzer 3 | . . . . . 3 . Insert Component 2 | . . . . . 2 . Analyze 1 | . . . . . 1 . Garrison Access Hacks . | . . . . . . . Unauthorized Hacks 1 | . . . . . 1 . Terminals 1 | . . . . . 1 . Botnet 1 | . . . . . 1 . Fabricators . | . . . . . . . Repair Stations . | . . . . . . . Recycling Units . | . . . . . . . Scanalyzers . | . . . . . . . Garrison Access . | . . . . . . . Data Cores Recovered . | . . . . . . . Used . | . . . . . . . Hacking Detections 7 | . 2 . . . 4 1 Full Trace Events 2 | . 1 . . . . 1 Feedback Events 1 | . 1 . . . . . Corruption 1 | . 1 . . . . . Feedback Blocked . | . . . . . . . Robot Schematics Acquired . | . . . . . . . Robots Built . | . . . . . . . Authchips . | . . . . . . . Time . | . . . . . . . Total Robot Build Rating . | . . . . . . . Part Schematics Acquired 1 | . . . . . 1 . Parts Built . | . . . . . . . Authchips . | . . . . . . . Time . | . . . . . . . Total Part Build Rating . | . . . . . . . Parts Repaired . | . . . . . . . Time . | . . . . . . . Parts Recycled . | . . . . . . . Recycled Matter . | . . . . . . . Retrieved Matter . | . . . . . . . Retrieved Components . | . . . . . . . Parts Scanalyzed 1 | . . . . . 1 . Part Schematics Acquired 1 | . . . . . 1 . Parts Damaged . | . . . . . . . Bothacking | -11 -10 -10 -10 -9 -8 -8 ------------ Run | Yrd Mat Min Exi Min Mat Sto Used RIF Installer . | . . . . . . . Robots Hacked . | . . . . . . . Non-combat . | . . . . . . . Combat . | . . . . . . . Robot Hacks Applied . | . . . . . . . Relay Couplers Released . | . . . . . . . Fabnet Peak Effective % . | . . . . . . . Robots Rewired . | . . . . . . . Allies Hacked . | . . . . . . . Hacks Repelled . | . . . . . . . Allies | -11 -10 -10 -10 -9 -8 -8 -------- Run | Yrd Mat Min Exi Min Mat Sto Total Allies 5 | . . . . 3 . 2 Largest Group 3 | . . . . 3 . 2 Highest-Rated Group 62 | . . . . 40 . 62 Highest-Rated Ally 31 | . . . . 16 . 31 Total Orders 1 | . . . . . 1 . EXPLORE 1 | . . . . . 1 . Ally Attacks 49 | . . . . 27 14 8 Total Damage 419 | . . . . 314 . 105 Kills 10 | . . . . 10 . . Allies Corrupted . | . . . . . . . Allies Melted . | . . . . . . . Intel | -11 -10 -10 -10 -9 -8 -8 ------- Run | Yrd Mat Min Exi Min Mat Sto Robot Analysis Total . | . . . . . . . Derelict Logs Recovered 1 | . . 1 . . . . Drone Launches 16 | . . . . . 16 . Drone Recoveries . | . . . . . . . Exploration | -11 -10 -10 -10 -9 -8 -8 ------------- Run | Yrd Mat Min Exi Min Mat Sto Turns Passed 3541 | 95 222 771 373 347 1483 250 Spaces Moved 2311 | 62 156 557 309 250 834 143 Core 66 | 9 . . . . 43 14 Treads 556 | . . . . . 427 129 Legs 1689 | 53 156 557 309 250 364 . Wheels . | . . . . . . . Hover . | . . . . . . . Flight . | . . . . . . . Fastest Speed 50 | 50 120 120 120 120 50 50 Average Speed 131 | 116 120 120 120 120 145 158 Slowest Speed 400 | 190 120 120 120 120 400 170 Overloaded Moves . | . . . . . . . Propulsion Burnouts . | . . . . . . . Robots Hopped . | . . . . . . . Cave-ins Triggered . | . . . . . . . Exploration Rate (%) 45 | 4 39 85 63 51 56 17 Regions Visited 6 Branch Regions 4 Pre-discovered Areas 3 | . . 2 1 . . . Known Exits Taken . | . . . . . . . Unknown Exits Taken 6 | 1 1 1 1 1 1 . Scrap Searched 2 | . . 1 . 1 . . Spaces Dug 9 | . . . . . 9 . Terrain Destroyed 64 | . . 4 . 4 56 . Melee 9 | . . . . . 9 . Projectile 9 | . . 4 . 4 1 . AOE 46 | . . . . . 46 . Terrain Rammed . | . . . . . . . Walls Destroyed . | . . . . . . . Machines Disabled . | . . . . . . . Actions | -11 -10 -10 -10 -9 -8 -8 --------- Run | Yrd Mat Min Exi Min Mat Sto Total 2668 | 75 175 619 312 273 1056 158 Wait 209 | . 7 28 . 8 166 . Move 2305 | 61 155 556 308 249 833 143 Hop . | . . . . . . . Pick Up 17 | 4 5 3 2 1 2 . Fast Attach 21 | 6 . 2 . 1 7 5 Attach 7 | 1 . . . . 4 2 Detach 1 | . . . . . 1 . Swap 7 | . . 2 . . 5 . Drop 16 | . . 7 2 2 5 . Fire 58 | 3 8 21 . 12 14 . Melee 18 | . . . . . 18 . Ram 1 | . . . . . 1 . Kick . | . . . . . . . Crush 8 | . . . . . . 8 Escape Stasis . | . . . . . . . Rewire . | . . . . . . . Trap . | . . . . . . . Miscellaneous . | . . . . . . . Route ------- -11/Scrapyard -10/Materials -10/Mines (discovered 3 exits: [*Mat x2] / *Exi) -10/Exiles -9/Mines -8/Materials (discovered 2 exits: [*Fac] / *Sto) -8/Storage History --------- Turn | Location | Event 4 | -11/Scrapyard | Discovered new exit (range 15) 96 | -11/Scrapyard | Entered Materials 232 | -10/Materials | Discovered new exit (range 9) 314 | -10/Materials | Build established: Mutant 318 | -10/Materials | Entered Mines 339 | -10/Mines | Found the Drone Emporium 345 | -10/Mines | Found Prototype Device 443 | -10/Mines | Found a damaged Exp. Sensor Array with a note attached 515 | -10/Mines | Met a Derelict who couldn't figure out how to use a Trap Extractor 751 | -10/Mines | Discovered new exit (range 6) 766 | -10/Mines | Discovered new exit (range 4) 808 | -10/Mines | Learned location of Mines (-9) 890 | -10/Mines | Learned location of Storage (-8) 1083 | -10/Mines | Deemed a non-threat by the Exiles lab entrance 1084 | -10/Mines | Discovered new exit (range 5) 1089 | -10/Mines | Entered Exiles 1118 | -10/Exiles | Met 8R-AWN 1137 | -10/Exiles | Met EX-HEX 1196 | -10/Exiles | Met EX-DEC 1227 | -10/Exiles | Learned location of Zion (-7) 1250 | -10/Exiles | Met EX-BIN 1273 | -10/Exiles | Aligned with FarCom system 1274 | -10/Exiles | Given EX-Vault access code 1304 | -10/Exiles | Opened EX-Vault 1313 | -10/Exiles | Found Cloak of Protection 1337 | -10/Exiles | Warned to stay clear of 0b10 Research branches 1450 | -10/Exiles | Discovered new exit (range 12) 1462 | -10/Exiles | Left Exiles lab with Cloak of Protection 1462 | -10/Exiles | Entered Mines 1480 | -9/Mines | Assisted by bots powering up and referring to "LRC-V3" 1504 | -9/Mines | Assembled infested the area 1509 | -9/Mines | Assisted by a Guerilla fighting off Assembled 1784 | -9/Mines | Received a Rocket Launcher from a helpful Derelict 1791 | -9/Mines | Discovered new exit (range 12) 1809 | -9/Mines | Entered Materials 1809 | -8/Materials | Evolved 4 slots: Propulsion x2, Utility x2 2332 | -8/Materials | Identified Bomb Drone Bay 2551 | -8/Materials | Discovered new exit (range 18) 2580 | -8/Materials | Lost 7 parts (1p3n1u2w) 2585 | -8/Materials | Lost 8 allies 2608 | -8/Materials | Discovered new exit (range 9) 3234 | -8/Materials | Lost 5 allies 3266 | -8/Materials | Core integrity fell below 50% 3272 | -8/Materials | Released all parts (4) 3292 | -8/Materials | Core integrity fell below 20% 3292 | -8/Materials | Entered Storage 3296 | -8/Storage | Met a pair of Derelict thieves 3542 | -8/Storage | Destroyed by Y-45 Defender with Beam Rifle Last Messages --------------- 03404_ G-47 Trooper destroyed. 03405_ M-13 Machinist repairs G-50 Soldier. 03406_ Slammed into G-50 Soldier. 03407_ Crushed G-50 Soldier. 03407_ G-50 Soldier destroyed. 03408_ Acquired 20 matter. 03409_ Slammed into Y-45 Defender. 03412_ Acquired 46 matter. 03413_ Slammed into B-36 Bruiser. 03414_ Crushed B-36 Bruiser. 03414_ B-36 Bruiser destroyed. 03415_ Acquired 29 matter. 03423_ Connecting with Terminal... >>Alert(Check) Current Alert Level: Low Security 03452_ Acquired Imp. Light Armor Plating. 03460_ Acquired 91 matter. 03470_ Slammed into Y-45 Defender. 03515_ Acquired 118 matter. 03533_ Imp. Light Armor Plating destroyed. Map ----- +----------------------------------------------------+ | ????????# # #?? | | ????????+ #####/##### #?? | | ????????# !## #######?? | | ????????# ## """"" #???????? | | ????????########### "???" #???????? | | ??????????????????# ""??" #???????? | | ??????????????????#% "??"" #???????? | | ??????????????????# % ???" #???????? | | ??????????????????# """"" #???????? | | ??????????????????#% #???????? | | ????????????????#?# % #???????? | | ????????????????+ ##+#######???????? | | ????????????????# #?#####???????? | | ?????????????#### ### #???????? | | ???????# b g #???????? | | ????????+## #####+###### #???????? | | ??????????????? ?????## ##???????? | | ?????????????# ???????#g#????????? | | ?????????????# ???????#g#????????? | | ?????????????# ????????# #????????? | | ?????????????# ?????????#Y#????????? | | ?????????????# ?????????#g#????????? | | ?????????????+??????????#Y#????????? | | ????????????????????????# #????????? | | ??????????????????#######/###??????? | | ??????????????????# @ #??????? | | ??????????????????# [[ #??????? | | ??????????????????# [[ Y#?????? | | ??????????????????# [[ ##?????? | | ??????????????????# #??????? | | ??????????????????+ #??????? | | ??????????????????# #??????? | | ??????????????????+ #??????? | | ??????????????????###########??????? | | ???????????????????????????????????? | | ???????????????????????????????????? | | ???????????????????????????????????? | | ???????????????????????????????????? | | ???????????????????????????????????? | | ???????????????????????????????????? | | ???????????????????????????????????? | | ???????????????????????????????????? | | ???????????????????????????????????? | | ???????????????????????????????????? | | ???????????????????????????????????? | | ???????????????????????????????????? | | ???????????????????????????????????? | | ???????????????????????????????????? | | ???????????????????????????????????? | | ???????????????????????????????????? | +----------------------------------------------------+ Best States ------------- Heat Dissipation 31 Energy Generation 14 Energy Capacity 610 Matter Stores 300 Matter Capacity 300 Sight Range 20 Terrain Scan Density 10 Armor Coverage 225 Evasion (%) 55 Recoil Reduction 3 Item Schematics ----------------- Hrd. Medium Armor Plating | -8/Materials | Scanalyzed Robot Schematics ------------------ None Fabricated ------------ Nothing Alien Tech Used ----------------- None Achievements -------------- None Challenges ------------ None Game ------ Seed GunDirtySegregator Manual? 0 Play Time 00:40:11 Cumulative 37.7 hours Start 2024.06.22 @ 23:35:58 End 2024.06.23 @ 20:12:08 Sessions 3 Manual Loads 0 Difficulty Rogue Special Mode None Game No. 69 Rogue 69 Adventurer 0 Explorer 0 Win Type - Total 0 Types 0/0/0/0/0/0/0/0/0 Lore% 24 Gallery% 24 Achievement% 26 Wizard Run 0 Options --------- Layout 0 ASCII 0 Keyboard 0 Movement Arrows Keybinds 0 Fullscreen 2 Font 18/SmallcapsGlow Map View 76x50 Zoom Use 0% Tactical HUD 1 Map Filters NONE Filters NONE Steam 1 RUN: 1f1d379e-7c8c-4791-ad3d-7a347d9a6656